[Event "2nd Turkish League 2017"]
[Site "Konya"]
[Date "2017.07.20"]
[Round "6"]
[White "Eren, Baran"]
[Black "Dogdu, Mehmet"]
[Result "1-0"]
[ECO "A10"]
[WhiteElo "2143"]
[BlackElo "1985"]
[Annotator "NA"]
[PlyCount "108"]
[EventType "team-tourn"]
[EventCountry "TUR"]
[SourceTitle "playchess.com"]
[Source "ChessBase"]
[SourceQuality "1"]
[TimeControl "5400+30"]

1. c4 {[%emt 0:00:30]} f5 {[%emt 0:01:00]} 2. g3 {[%emt 0:00:30]} Nf6 {[%emt 0:00:00]} 3. Bg2 {[%emt 0:00:00]} g6 {[%emt 0:00:00]} 4. Nc3 {[%emt 0:00:00]} Bg7 {[%emt 0:00:30]} 5. d3 {[%emt 0:01:30]} O-O {[%emt 0:02:30]} 6. Rb1 {[%emt 0:00:30]} d6 {[%emt 0:01:30]} 7. e3 {[%emt 0:00:30]} Nbd7 {[%emt 0:03:30]} 8. Nge2 {[%emt 0:00:30]} Kh8 {[%emt 0:16:30]} 9. O-O {[%emt 0:00:30]} c6 {[%emt 0:01:30]} 10. b4 {[%emt 0:00:30]} a6 {[%emt 0:06:30]} 11. a4 {[%emt 0:12:30]} c5 {[%emt 0:17:30]} 12. Nf4 {[%emt 0:07:30]} Ne5 {[%emt 0:11:30]} 13. b5 {[%emt 0:14:30]} a5 {[%emt 0:04:30]} 14. b6 $14 {[%emt 0:02:30]} (14. Ncd5 $16) 14... Ra6 {[%emt 0:06:30]} 15. Nfd5 {[%emt 0:06:30]} Ne8 {[%emt 0:04:30]} 16. Nb5 {[%emt 0:01:30]} e6 {[%emt 0:07:17]} 17. Nbc7 {[%emt 0:01:30]} exd5 {[%emt 0:00:28]} 18. Nxa6 {[%emt 0:00:00]} dxc4 {[%emt 0:01:37]} 19. dxc4 {[%emt 0:00:00]} Nxc4 {[%emt 0:00:56]} 20. Nxc5 {[%emt 0:01:30]} Nf6 {[%emt 0:06:06]} 21. Qb3 {[%emt 0:04:30]} Qxb6 {[%emt 0:03:08]} 22. Qxb6 {[%emt 0:00:30]} Nxb6 {[%emt 0:00:06]} 23. Rxb6 {[%emt 0:01:30]} dxc5 {[%emt 0:00:05]} 24. Bxb7 {[%emt 0:01:30]} Ne4 {[%emt 0:00:30]} 25. Bxe4 {[%emt 0:02:30]} fxe4 {[%emt 0:00:35]} 26. Bb2 {[%emt 0:00:30]} Bxb2 {[%emt 0:01:08]} 27. Rxb2 {[%emt 0:00:00]} Ba6 {[%emt 0:02:22]} 28. Rc1 {[%emt 0:07:00]} Rd8 {[%emt 0:00:25]} 29. Kg2 {[%emt 0:01:30]} Rd5 {[%emt 0:01:19]} 30. Rb8+ {[%emt 0:01:30]} Kg7 {[%emt 0:00:30]} 31. Ra8 {[%emt 0:00:00]} Be2 {[%emt 0:00:46]} 32. Rxa5 {[%emt 0:01:00]} Bf3+ {[%emt 0:00:20]} 33. Kg1 {[%emt 0:00:00]} Rd2 {[%emt 0:00:48]} 34. Raxc5 {[%emt 0:00:00]} Ra2 {[%emt 0:00:00]} 35. a5 {[%emt 0:00:30]} h5 {[%emt 0:00:13]} 36. h3 {[%emt 0:07:30]} Kh7 {[%emt 0:00:50]} 37. Re5 {[%emt 0:00:30]} Kg7 {[%emt 0:00:29]} 38. Re7+ {[%emt 0:01:30]} Kf6 {[%emt 0:00:56]} 39. Ra7 {[%emt 0:00:30]} Kg5 {[%emt 0:00:14]} 40. a6 {[%emt 0:01:30]} h4 {[%emt 0:00:36]} 41. gxh4+ {[%emt 0:01:30]} Kxh4 {[%emt 0:00:33]} 42. Rh7+ {[%emt 0:00:30]} Bh5 {[%emt 0:00:32]} 43. a7 {[%emt 0:00:30]} Kxh3 {[%emt 0:00:18]} 44. Re7 {[%emt 0:02:38]} Bf3 {[%emt 0:00:40]} 45. Re6 {[%emt 0:01:38]} g5 {[%emt 0:00:54]} 46. Re5 {[%emt 0:00:20]} Kg4 {[%emt 0:00:19]} 47. Re7 {[%emt 0:00:04]} Ra6 {[%emt 0:00:08]} 48. Rh7 {[%emt 0:02:08]} Ra5 {[%emt 0:00:22]} 49. Kh2 {[%emt 0:00:29]} Ra2 {[%emt 0:00:42]} 50. Rg1+ {[%emt 0:00:37]} Kf5 {[%emt 0:00:30]} 51. Kg3 {[%emt 0:00:00]} Ra6 {[%emt 0:00:03]} 52. Rc1 {[%emt 0:01:09]} Ra2 {[%emt 0:00:21]} 53. Rb7 {[%emt 0:00:59]} Ke6 {[%emt 0:01:22]} 54. Rc5 {[%emt 0:00:58]} g4 {[%emt 0:00:30]} 1-0

[Event "2nd Turkish League 2017"]
[Site "Konya"]
[Date "2017.07.20"]
[Round "6"]
[White "Duman, Aydin"]
[Black "Kaplan, Bahadir"]
[Result "1-0"]
[ECO "B43"]
[WhiteElo "2056"]
[BlackElo "1952"]
[Annotator "NA"]
[PlyCount "63"]
[EventType "team-tourn"]
[EventCountry "TUR"]
[SourceTitle "playchess.com"]
[Source "ChessBase"]
[SourceQuality "1"]
[TimeControl "5400+30"]

1. e4 {[%emt 0:00:30]} c5 {[%emt 0:01:00]} 2. Nf3 {[%emt 0:00:30]} e6 {[%emt 0:00:00]} 3. d4 {[%emt 0:01:30]} cxd4 {[%emt 0:00:00]} 4. Nxd4 {[%emt 0:00:30]} a6 {[%emt 0:00:00]} 5. Nc3 {[%emt 0:01:30]} b5 {[%emt 0:00:00]} 6. g3 {[%emt 0:00:30]} Bb7 {[%emt 0:02:30]} 7. Bg2 {[%emt 0:00:30]} Nf6 {[%emt 0:01:30]} 8. O-O {[%emt 0:01:30]} b4 {[%emt 0:00:30]} 9. Na4 {[%emt 0:00:30]} Bxe4 {[%emt 0:00:30] B43: Sicilian: Kan Variation: 5 Nc3} 10. Bxe4 {[%emt 0:00:30]} Nxe4 {[%emt 0:00:00]} 11. Re1 {[%emt 0:00:00]} d5 {[%emt 0:00:00]} 12. c4 {[%emt 0:03:00]} (12. Qh5 Qf6 13. Be3 Nd7 14. f3 g6 15. Qg4 h5 16. Qh3 Nd6 17. Rad1 Be7 18. Nxe6 Qxe6 19. Qg2 Nf5 20. Bg5 Qc6 21. Bxe7 Nxe7 22. Qe2 O-O {0-1 (22) Jovanovic,Z (2534)-Andreikin,D (2737) Tallinn 2016}) 12... bxc3 {[%emt 0:07:30]} 13. Nxc3 {[%emt 0:00:30]} Bc5 {[%emt 0:07:30]} 14. Nxe6 $146 {[%emt 0:51:30]} ({Predecessor:} 14. Nxe4 dxe4 15. Be3 Be7 16. Qg4 O-O 17. Qxe4 {1-0 (57) Berger,S (2399)-Bornschein,B (2040) Berlin 2007}) 14... Bxf2+ {[%emt 0:07:30]} 15. Kg2 {[%emt 0:00:00]} fxe6 {[%emt 0:02:30]} 16. Nxe4 {[%emt 0:01:00]} Bxe1 {[%emt 0:24:30]} 17. Qh5+ {[%emt 0:01:30]} g6 {[%emt 0:02:30]} 18. Qe5 {[%emt 0:00:00]} dxe4 {[%emt 0:13:30]} 19. Bg5 {[%emt 0:04:00]} Qxg5 {[%emt 0:16:16]} 20. Qxg5 {[%emt 0:01:30]} Bb4 $2 {[%emt 0:01:01]} (20... O-O 21. Rxe1 Nd7 22. Rxe4 e5) 21. Qe5 {[%emt 0:00:30]} O-O {[%emt 0:02:19]} 22. Qxe6+ {[%emt 0:02:30]} Rf7 {[%emt 0:04:24]} 23. Qxe4 {[%emt 0:00:30]} Raa7 {[%emt 0:03:36]} 24. Qxb4 {[%emt 0:00:30]} Rab7 {[%emt 0:00:07]} 25. Qa4 {[%emt 0:00:30]} Rxb2+ {[%emt 0:00:19]} 26. Kh3 {[%emt 0:00:00]} Rff2 $2 {[%emt 0:00:29]} (26... Nd7 27. Qxa6 Kg7) 27. Rc1 $18 {[%emt 0:03:00]} Rxh2+ {[%emt 0:01:37]} 28. Kg4 {[%emt 0:00:00]} Rb5 {[%emt 0:00:44]} 29. Rc8+ {[%emt 0:02:00]} Kf7 {[%emt 0:01:04]} 30. Qc4+ {[%emt 0:02:30]} Ke7 {[%emt 0:00:46]} 31. Rxb8 {[%emt 0:05:50]} Rxb8 {[%emt 0:01:13]} 32. Qc7+ {[%emt 0:00:07]} 1-0

[Event "2nd Turkish League 2017"]
[Site "Konya"]
[Date "2017.07.20"]
[Round "6"]
[White "Buker, Muhittin"]
[Black "Yalim, Suleyman"]
[Result "1/2-1/2"]
[ECO "A32"]
[WhiteElo "2006"]
[BlackElo "2039"]
[Annotator "NA"]
[PlyCount "38"]
[EventType "team-tourn"]
[EventCountry "TUR"]
[SourceTitle "playchess.com"]
[Source "ChessBase"]
[SourceQuality "1"]
[TimeControl "5400+30"]

1. d4 {[%emt 0:00:30]} Nf6 {[%emt 0:01:00]} 2. c4 {[%emt 0:00:00]} e6 {[%emt 0:02:30]} 3. Nf3 {[%emt 0:00:00]} c5 {[%emt 0:03:30]} 4. Nc3 {[%emt 0:02:30]} a6 {[%emt 0:10:30]} 5. Bg5 {[%emt 0:08:30]} cxd4 {[%emt 0:04:30]} 6. Nxd4 {[%emt 0:00:30]} Nc6 {[%emt 0:00:30]} 7. Nb3 {[%emt 0:02:30]} Be7 {[%emt 0:04:30]} 8. e4 {[%emt 0:03:30]} Nxe4 {[%emt 0:01:30]} 9. Bxe7 {[%emt 0:00:30]} Nxc3 {[%emt 0:00:30]} 10. Bxd8 {[%emt 0:10:30]} Nxd1 {[%emt 0:00:00]} 11. Bf6 {[%emt 0:00:30]} gxf6 {[%emt 0:01:00]} 12. Rxd1 {[%emt 0:00:30]} Ke7 {[%emt 0:03:30]} 13. g3 {[%emt 0:02:30]} Rb8 {[%emt 0:04:30]} 14. Bg2 {[%emt 0:00:30]} d6 {[%emt 0:01:30]} 15. O-O {[%emt 0:00:30]} Ne5 {[%emt 0:06:30]} 16. Rd4 {[%emt 0:01:30]} Nc6 {[%emt 0:02:30]} 17. Rd2 {[%emt 0:03:30]} Ne5 {[%emt 0:10:30]} 18. Rd4 {[%emt 0:01:30]} Nc6 {[%emt 0:01:30]} 19. Rd2 {[%emt 0:00:00]} Ne5 {[%emt 0:00:30]} 1/2-1/2

[Event "2nd Turkish League 2017"]
[Site "Konya"]
[Date "2017.07.20"]
[Round "6"]
[White "Ibik, Halit Yavuz"]
[Black "Acar, Utku Cengiz"]
[Result "1/2-1/2"]
[ECO "B83"]
[WhiteElo "2004"]
[BlackElo "1863"]
[Annotator "NA"]
[PlyCount "69"]
[EventType "team-tourn"]
[EventCountry "TUR"]
[SourceTitle "playchess.com"]
[Source "ChessBase"]
[SourceQuality "1"]
[TimeControl "5400+30"]

1. e4 {[%emt 0:00:30]} c5 {[%emt 0:01:00]} 2. Nf3 {[%emt 0:00:30]} e6 {[%emt 0:00:30]} 3. d4 {[%emt 0:00:00]} cxd4 {[%emt 0:00:00]} 4. Nxd4 {[%emt 0:00:00]} Nc6 {[%emt 0:01:00]} 5. Nc3 {[%emt 0:00:30]} Qc7 {[%emt 0:00:30]} 6. Be2 {[%emt 0:01:30]} Nf6 {[%emt 0:03:30]} 7. Be3 {[%emt 0:14:30]} Be7 {[%emt 0:03:30]} 8. O-O {[%emt 0:00:00]} O-O {[%emt 0:02:30]} 9. f4 {[%emt 0:08:00]} d6 {[%emt 0:00:30]} 10. g4 {[%emt 0:06:30]} Nxd4 {[%emt 0:15:30]} 11. Bxd4 {[%emt 0:00:00]} e5 {[%emt 0:00:30]} 12. Be3 {[%emt 0:01:00]} exf4 {[%emt 0:00:30]} 13. Rxf4 {[%emt 0:01:30]} Be6 {[%emt 0:06:30]} 14. Nd5 {[%emt 0:24:30]} Bxd5 {[%emt 0:07:30]} 15. exd5 {[%emt 0:00:30]} Nd7 {[%emt 0:01:30]} 16. Rf3 {[%emt 0:00:30]} Bf6 $15 {[%emt 0:06:30]} 17. c3 {[%emt 0:10:30]} Rfe8 {[%emt 0:06:30]} 18. Qf1 {[%emt 0:08:30]} Rxe3 {[%emt 0:14:30]} 19. Rxe3 {[%emt 0:00:30]} Qb6 {[%emt 0:00:30]} 20. Qf2 {[%emt 0:02:53]} Bh4 {[%emt 0:00:30]} 21. Qxh4 {[%emt 0:00:49]} Qxe3+ {[%emt 0:00:30]} 22. Qf2 {[%emt 0:00:03]} Qe5 {[%emt 0:00:00]} 23. Bf3 {[%emt 0:01:55]} Re8 {[%emt 0:07:00]} 24. Qxa7 {[%emt 0:06:40]} Nc5 {[%emt 0:01:30]} 25. Rf1 {[%emt 0:00:52]} h5 {[%emt 0:06:09]} 26. gxh5 {[%emt 0:04:09]} Qe3+ {[%emt 0:02:42]} 27. Kh1 {[%emt 0:04:58]} Qd3 {[%emt 0:02:49]} 28. Bg2 {[%emt 0:01:40]} Re2 {[%emt 0:00:27]} 29. Qb8+ {[%emt 0:00:11]} Kh7 {[%emt 0:00:05]} 30. Qxd6 {[%emt 0:00:27]} Rxg2 {[%emt 0:02:44]} 31. Kxg2 {[%emt 0:00:33]} Qe2+ {[%emt 0:00:20]} 32. Kg1 {[%emt 0:00:21]} Qe3+ {[%emt 0:00:29]} 33. Kg2 {[%emt 0:00:12]} Qe2+ {[%emt 0:05:03]} 34. Kg1 {[%emt 0:00:03]} Qe3+ {[%emt 0:00:36]} 35. Kg2 {[%emt 0:00:01]} 1/2-1/2

[Event "2nd Turkish League 2017"]
[Site "Konya"]
[Date "2017.07.20"]
[Round "6"]
[White "Celik, Berkay"]
[Black "Alaz, Ahmet Efekan"]
[Result "1-0"]
[ECO "A03"]
[WhiteElo "1963"]
[BlackElo "2015"]
[Annotator "NA"]
[PlyCount "97"]
[EventType "team-tourn"]
[EventCountry "TUR"]
[SourceTitle "playchess.com"]
[Source "ChessBase"]
[SourceQuality "1"]
[TimeControl "5400+30"]

1. b3 {[%emt 0:00:30]} d5 {[%emt 0:01:00]} 2. Bb2 {[%emt 0:00:00]} Bf5 {[%emt 0:01:30]} 3. e3 {[%emt 0:01:00]} Nd7 {[%emt 0:00:00]} 4. f4 {[%emt 0:00:00]} Ngf6 {[%emt 0:00:00]} 5. Nf3 {[%emt 0:00:00]} e6 {[%emt 0:01:30]} 6. Be2 {[%emt 0:00:00]} h6 {[%emt 0:01:30] A03: Bird's Opening with 1...d5} 7. O-O {[%emt 0:01:00]} Bd6 {[%emt 0:04:30]} 8. c4 {[%emt 0:01:30]} c6 {[%emt 0:00:30]} 9. a3 $146 {[%emt 0:00:30]} ({Predecessor:} 9. Nc3 Qc7 10. Rc1 a6 11. h3 O-O-O 12. cxd5 exd5 13. Nd4 Bh7 {1-0 (29) Romanov,A (2430)-Zhang,J (2292) Singapore 2006}) 9... O-O {[%emt 0:00:30]} 10. b4 {[%emt 0:11:30]} a5 {[%emt 0:03:30]} 11. c5 {[%emt 0:00:30]} Bc7 {[%emt 0:01:30]} 12. Nc3 {[%emt 0:01:30]} Bh7 {[%emt 0:02:30]} 13. d4 {[%emt 0:00:30]} axb4 {[%emt 0:09:30]} 14. axb4 {[%emt 0:00:00]} b6 {[%emt 0:00:30]} 15. Ne5 {[%emt 0:04:00]} Nxe5 {[%emt 0:07:30]} 16. fxe5 {[%emt 0:00:30]} Ne4 {[%emt 0:01:30]} 17. Bd3 {[%emt 0:02:30]} Qg5 {[%emt 0:05:30]} 18. Rf3 {[%emt 0:03:30]} Rxa1 {[%emt 0:06:30]} 19. Bxa1 {[%emt 0:02:30]} Nxc3 {[%emt 0:02:30]} 20. Bxh7+ {[%emt 0:00:30]} Kxh7 {[%emt 0:00:30]} 21. Bxc3 {[%emt 0:00:00]} bxc5 {[%emt 0:03:30]} 22. bxc5 {[%emt 0:00:00]} Qg6 {[%emt 0:01:30]} 23. Qa4 {[%emt 0:14:30]} Rb8 {[%emt 0:11:30]} 24. h3 {[%emt 0:09:30]} Qd3 {[%emt 0:17:08]} 25. e4 $1 {[%emt 0:11:30]} Qb1+ {[%emt 0:04:10]} 26. Kh2 {[%emt 0:00:00]} dxe4 {[%emt 0:00:21]} 27. Rxf7 {[%emt 0:00:00]} Rb7 $18 {[%emt 0:01:17]} (27... Qb7 $16 {was called for.} 28. Rf4 Bd8) 28. Rf2 {[%emt 0:05:30]} e3 {[%emt 0:00:19]} 29. Qc2+ {[%emt 0:00:30]} Qxc2 {[%emt 0:09:42]} 30. Rxc2 {[%emt 0:00:30]} Rb3 {[%emt 0:00:30]} 31. Kg3 {[%emt 0:00:30]} Kg6 {[%emt 0:02:13]} 32. Kf3 {[%emt 0:00:00]} Kf5 {[%emt 0:00:38]} 33. g3 {[%emt 0:06:00]} e2 {[%emt 0:00:28]} 34. g4+ {[%emt 0:13:56]} Kg5 {[%emt 0:00:30]} 35. Kxe2 {[%emt 0:00:00]} Kh4 {[%emt 0:00:00]} 36. Kd3 {[%emt 0:00:26]} Kxh3 {[%emt 0:00:59]} 37. Kc4 {[%emt 0:00:01]} Rb7 {[%emt 0:01:16]} 38. Ra2 {[%emt 0:00:01]} Bb8 {[%emt 0:00:25]} 39. Ra6 {[%emt 0:00:51]} Rc7 {[%emt 0:00:03]} 40. Ba5 {[%emt 0:00:00]} Ra7 {[%emt 0:00:52]} 41. Rxc6 {[%emt 0:03:36]} Rxa5 {[%emt 0:00:30]} 42. Rxe6 {[%emt 0:00:00]} Ra7 {[%emt 0:00:51]} 43. Rg6 {[%emt 0:00:05]} Re7 {[%emt 0:00:00]} 44. e6 {[%emt 0:00:15]} Kg3 {[%emt 0:00:40]} 45. d5 {[%emt 0:00:07]} Kf4 {[%emt 0:00:28]} 46. d6 {[%emt 0:00:07]} Re8 {[%emt 0:00:21]} 47. Kd5 {[%emt 0:00:21]} h5 {[%emt 0:00:30]} 48. gxh5 {[%emt 0:00:30]} Kf5 {[%emt 0:00:00]} 49. e7 {[%emt 0:00:09]} 1-0

[Event "2nd Turkish League 2017"]
[Site "Konya"]
[Date "2017.07.20"]
[Round "6"]
[White "Kuruz, Yusuf"]
[Black "Okay, Ilkin Ege"]
[Result "1/2-1/2"]
[ECO "A26"]
[WhiteElo "1906"]
[BlackElo "1973"]
[Annotator "NA"]
[PlyCount "55"]
[EventType "team-tourn"]
[EventCountry "TUR"]
[SourceTitle "playchess.com"]
[Source "ChessBase"]
[SourceQuality "1"]
[TimeControl "5400+30"]

1. Nf3 {[%emt 0:00:30]} g6 {[%emt 0:01:00]} 2. c4 {[%emt 0:00:30]} Bg7 {[%emt 0:00:30]} 3. Nc3 {[%emt 0:00:30]} d6 {[%emt 0:00:30]} 4. g3 {[%emt 0:01:30]} Nf6 {[%emt 0:00:30]} 5. Bg2 {[%emt 0:00:30]} O-O {[%emt 0:00:30]} 6. O-O {[%emt 0:00:30]} Nc6 {[%emt 0:00:00]} 7. d3 {[%emt 0:03:30]} e5 {[%emt 0:00:00]} 8. Bd2 {[%emt 0:10:30]} h6 {[%emt 0:01:30]} 9. Qc1 {[%emt 0:15:30]} Kh7 {[%emt 0:00:30]} 10. Nd1 {[%emt 0:00:30]} a5 {[%emt 0:04:30]} 11. e4 {[%emt 0:01:30]} Bg4 {[%emt 0:05:30]} 12. Ne3 {[%emt 0:01:30]} Bxf3 {[%emt 0:00:30]} 13. Bxf3 {[%emt 0:00:30]} Nd4 {[%emt 0:00:00]} 14. Qd1 {[%emt 0:01:30]} Nxf3+ {[%emt 0:05:00]} 15. Qxf3 {[%emt 0:00:00]} Nd7 {[%emt 0:00:30]} 16. Rad1 {[%emt 0:03:00]} Nc5 {[%emt 0:01:30]} 17. Bc1 {[%emt 0:04:30]} Qd7 {[%emt 0:09:30]} 18. b3 {[%emt 0:01:30]} f5 {[%emt 0:04:30]} 19. exf5 {[%emt 0:01:30]} gxf5 {[%emt 0:00:00]} 20. Ng2 {[%emt 0:03:30]} c6 {[%emt 0:10:00]} 21. Nh4 {[%emt 0:05:30]} Qf7 {[%emt 0:07:30]} 22. Ba3 {[%emt 0:05:30]} Rad8 {[%emt 0:11:30]} 23. Qe2 {[%emt 0:07:30]} Ne6 {[%emt 0:03:30]} 24. Bb2 {[%emt 0:03:30]} Rfe8 {[%emt 0:07:30]} 25. Qf3 {[%emt 0:00:30]} Rf8 {[%emt 0:00:30]} 26. Qe2 {[%emt 0:00:30]} Rfe8 {[%emt 0:00:30]} 27. Qf3 {[%emt 0:03:30]} Rf8 {[%emt 0:00:30]} 28. Qe2 {[%emt 0:00:30]} 1/2-1/2

[Event "2nd Turkish League 2017"]
[Site "Konya"]
[Date "2017.07.20"]
[Round "6"]
[White "Yamac, Yuksel Yalcin"]
[Black "Seyhanoglu, Deniz"]
[Result "0-1"]
[ECO "A10"]
[WhiteElo "1845"]
[BlackElo "2049"]
[Annotator "NA"]
[PlyCount "170"]
[EventType "team-tourn"]
[EventCountry "TUR"]
[SourceTitle "playchess.com"]
[Source "ChessBase"]
[SourceQuality "1"]
[TimeControl "5400+30"]

1. c4 {[%emt 0:00:30]} c5 {[%emt 0:01:00]} 2. Nc3 {[%emt 0:00:30]} b6 {[%emt 0:00:00]} 3. g3 {[%emt 0:00:30]} Bb7 {[%emt 0:03:00]} 4. Nf3 {[%emt 0:00:30]} Bxf3 {[%emt 0:00:30]} 5. exf3 {[%emt 0:00:30]} Nc6 {[%emt 0:00:30]} 6. Bg2 {[%emt 0:00:30]} g6 {[%emt 0:00:00] A10: English Opening: Unusual Replies for Black} 7. f4 {[%emt 0:00:30]} Bg7 {[%emt 0:00:00]} 8. O-O {[%emt 0:00:30]} Nh6 {[%emt 0:00:30]} 9. Re1 {[%emt 0:00:30]} Nf5 {[%emt 0:01:30]} 10. d3 {[%emt 0:01:30]} O-O {[%emt 0:01:30]} 11. Nd5 $146 {[%emt 0:01:30]} ({Predecessor:} 11. Be3 e6 12. Qd2 Rc8 {0-1 (42) Amini,A (2111)-Zubarev,A (2553) Mashhad 2016}) 11... e6 {[%emt 0:00:30]} 12. Ne3 {[%emt 0:00:30]} Nfd4 {[%emt 0:00:30]} 13. Rb1 {[%emt 0:01:30]} Rc8 {[%emt 0:01:30]} 14. b3 {[%emt 0:00:30]} Qc7 {[%emt 0:02:30]} 15. Bb2 {[%emt 0:00:30]} Rfd8 {[%emt 0:03:30]} 16. Nc2 {[%emt 0:01:30]} Qd6 {[%emt 0:07:30]} 17. Nxd4 {[%emt 0:01:30]} Bxd4 {[%emt 0:01:30]} 18. Bxc6 {[%emt 0:12:30]} dxc6 {[%emt 0:00:30]} 19. Bxd4 {[%emt 0:01:30]} Qxd4 {[%emt 0:01:30]} 20. Re3 {[%emt 0:07:30]} b5 {[%emt 0:05:30]} 21. Qc2 {[%emt 0:03:30]} Rd7 {[%emt 0:08:30]} 22. Kf1 {[%emt 0:03:30]} b4 {[%emt 0:01:30]} 23. Qb2 {[%emt 0:02:30]} Qd6 {[%emt 0:02:30]} 24. Qe5 {[%emt 0:04:30]} Qe7 {[%emt 0:02:30]} 25. Rbe1 {[%emt 0:12:30]} Rcd8 {[%emt 0:15:30]} 26. f5 {[%emt 0:23:01]} gxf5 {[%emt 0:13:30]} 27. Qxf5 {[%emt 0:02:17]} Rd4 {[%emt 0:05:30]} 28. Re4 {[%emt 0:04:01]} h6 {[%emt 0:04:52]} 29. h4 {[%emt 0:01:17]} Qd6 {[%emt 0:00:39]} 30. Qg4+ {[%emt 0:03:44]} Kh7 {[%emt 0:02:25]} 31. Rxd4 {[%emt 0:00:52]} Qxd4 {[%emt 0:00:19]} 32. Qxd4 {[%emt 0:00:58]} Rxd4 {[%emt 0:00:14]} 33. Re5 {[%emt 0:01:42]} Rxd3 {[%emt 0:00:18]} 34. Rxc5 {[%emt 0:00:00]} Rd2 {[%emt 0:01:15]} 35. Ra5 {[%emt 0:00:03]} Rd7 {[%emt 0:00:28]} 36. Ke2 {[%emt 0:01:16]} Kg6 {[%emt 0:00:30]} 37. Ke3 {[%emt 0:00:12]} Kf6 {[%emt 0:00:27]} 38. Ra6 {[%emt 0:00:26]} Rc7 {[%emt 0:01:01]} 39. Kd4 {[%emt 0:00:26]} c5+ {[%emt 0:00:14]} 40. Ke4 {[%emt 0:00:25]} Rd7 {[%emt 0:01:06]} 41. Ke3 $16 {[%emt 0:01:38]} Rc7 {[%emt 0:00:16]} 42. g4 {[%emt 0:00:48]} h5 {[%emt 0:03:47]} 43. f3 {[%emt 0:01:47]} hxg4 {[%emt 0:01:06]} 44. fxg4 {[%emt 0:00:30]} Ke5 {[%emt 0:00:00]} 45. h5 {[%emt 0:00:18]} f6 {[%emt 0:01:11]} 46. Ra5 {[%emt 0:00:37]} f5 {[%emt 0:00:54]} 47. gxf5 {[%emt 0:00:51]} Kxf5 {[%emt 0:00:32]} 48. h6 {[%emt 0:00:37]} e5 {[%emt 0:00:15]} 49. Ra6 {[%emt 0:00:53]} Rh7 {[%emt 0:02:08]} 50. Rc6 {[%emt 0:00:25]} Rh8 {[%emt 0:00:00]} 51. Ra6 {[%emt 0:01:33]} Rh7 {[%emt 0:00:25]} 52. Rc6 {[%emt 0:00:05]} Rh8 {[%emt 0:00:45]} 53. Ra6 {[%emt 0:00:28]} Rh7 {[%emt 0:03:04]} 54. Rc6 {[%emt 0:00:25]} a5 {[%emt 0:00:35]} 55. Ra6 {[%emt 0:01:06]} Rh8 {[%emt 0:00:34]} 56. Rc6 {[%emt 0:00:09]} Rh7 {[%emt 0:01:03]} 57. Ra6 {[%emt 0:00:12]} Rh8 {[%emt 0:00:11]} 58. Rc6 {[%emt 0:00:28]} Rg8 {[%emt 0:00:55]} 59. h7 {[%emt 0:01:20]} Rg3+ {[%emt 0:00:13]} 60. Kf2 {[%emt 0:01:06]} Rh3 {[%emt 0:00:33]} 61. Rxc5 {[%emt 0:00:19]} Rxh7 {[%emt 0:00:20]} 62. Rxa5 {[%emt 0:00:37]} Kf4 {[%emt 0:00:10]} 63. Ra8 {[%emt 0:01:17]} Rh2+ {[%emt 0:00:16]} 64. Ke1 {[%emt 0:01:12]} Ke3 {[%emt 0:00:36]} 65. Kd1 {[%emt 0:00:16]} e4 {[%emt 0:00:32]} 66. Ra7 {[%emt 0:00:32]} Rh1+ {[%emt 0:01:54]} 67. Kc2 {[%emt 0:00:14]} Rh2+ {[%emt 0:00:24]} 68. Kd1 {[%emt 0:00:08]} Rd2+ {[%emt 0:00:00]} 69. Ke1 {[%emt 0:00:34]} Rg2 {[%emt 0:00:25]} 70. Kd1 {[%emt 0:00:37]} Kd3 {[%emt 0:01:34]} 71. Rd7+ {[%emt 0:00:16]} Ke3 {[%emt 0:00:36]} 72. Ra7 {[%emt 0:00:05]} Rg1+ {[%emt 0:01:11]} 73. Kc2 {[%emt 0:00:08]} Rg5 {[%emt 0:01:30]} 74. Kd1 {[%emt 0:01:02]} Rg8 {[%emt 0:00:24]} 75. Ra6 {[%emt 0:00:16]} Rg5 {[%emt 0:00:40]} 76. Ra8 {[%emt 0:00:11]} Rf5 {[%emt 0:00:09]} 77. Ra7 {[%emt 0:01:40]} Rf8 {[%emt 0:00:12]} 78. Ra6 {[%emt 0:00:14]} Kf2 {[%emt 0:00:15]} 79. Rh6 {[%emt 0:01:02]} Rd8+ {[%emt 0:00:36]} 80. Kc2 {[%emt 0:00:15]} e3 {[%emt 0:00:51]} 81. Rh2+ {[%emt 0:00:35]} Kg3 {[%emt 0:00:14]} 82. Re2 {[%emt 0:01:04]} Kf3 {[%emt 0:00:01]} 83. Rh2 {[%emt 0:00:05]} e2 {[%emt 0:00:20]} 84. Rh3+ {[%emt 0:00:41]} Kg2 {[%emt 0:00:14]} 85. Re3 {[%emt 0:00:22]} Kf2 {[%emt 0:00:06]} 0-1